fUST/lending_fUST_20260605
["ID","MTS","AMOUNT","RATE_DAILY","PERIOD"]
[424130911,1780606254000,-151.0,0.00019178,2]
[424130907,1780606254000,-151.0,0.00019178,2]
[424130906,1780606254000,-190.576082,0.00019178,2]
[424130915,1780606254000,-2410.15412487,0.00019178,2]
[424130904,1780606254000,-151.0,0.00019178,2]
[424130905,1780606254000,-151.0,0.00019178,2]
[424130898,1780606254000,-2708.964537,0.00019178,2]
[424130914,1780606254000,-151.0,0.00019178,2]
[424130897,1780606254000,-190.576082,0.00019178,2]
[424130902,1780606254000,-151.0,0.00019178,2]
[424130896,1780606254000,-2708.964537,0.00019178,2]
[424130901,1780606254000,-190.576082,0.00019178,2]
[424130899,1780606254000,-151.0,0.00019178,2]
[424130942,1780606588000,156.0,0.0002,120]
[424130943,1780606590000,156.0,0.000217,120]
[424130997,1780607432000,-3338.4978971,0.00013594,2]
[424130999,1780607432000,-166.66666667,0.00013699,2]
[424131012,1780607432000,-853.4,0.00014797,2]
[424131005,1780607432000,-3703.11416093,0.00014698,2]
[424131016,1780607432000,-67.7011366,0.00014797,2]
[424131007,1780607432000,-501.93,0.00014797,2]
[424131003,1780607432000,-1000.0,0.00013879,2]
[424131014,1780607432000,-500.0,0.00014797,2]
[424131009,1780607432000,-500.0,0.00014797,2]
[424130995,1780607432000,-5000.0,0.00013292,2]
[424131001,1780607432000,-501.536076,0.000138,2]
[424131011,1780607432000,-345.1,0.00014797,2]
[424131430,1780607441000,-2696.0,0.00014649,2]
[424131505,1780607442000,-651.30062467,0.00014649,2]
[424131557,1780607442000,-322.93586196,0.00014798,2]
[424131550,1780607442000,-500.0,0.00014798,2]
[424131561,1780607442000,-500.0,0.00014798,2]
[424131548,1780607442000,-500.0,0.00014798,2]
[424131546,1780607442000,-500.0,0.00014798,2]
[424131544,1780607442000,-500.0,0.00014798,2]
[424131543,1780607442000,-500.0,0.00014798,2]
[424131539,1780607442000,-500.0,0.00014798,2]
[424131540,1780607442000,-500.0,0.00014798,2]
[424131530,1780607442000,-500.0,0.00014798,2]
[424131533,1780607442000,-500.0,0.00014798,2]
[424131535,1780607442000,-500.0,0.00014798,2]
[424131532,1780607442000,-367.84821196,0.00014798,2]
[424131537,1780607442000,-500.0,0.00014798,2]
[424131526,1780607442000,-500.0,0.00014798,2]
[424131524,1780607442000,-500.0,0.00014798,2]
[424131528,1780607442000,-500.0,0.00014798,2]
[424131522,1780607442000,-254.68062367,0.00014798,2]
[424131511,1780607442000,-158.67,0.00014797,2]
[424131520,1780607442000,-500.0,0.00014797,2]
[424131514,1780607442000,-993.49,0.00014797,2]
[424131518,1780607442000,-500.0,0.00014797,2]
[424131513,1780607442000,-500.0,0.00014797,2]
[424131552,1780607442000,-500.0,0.00014798,2]
[424131516,1780607442000,-500.0,0.00014797,2]
[424131509,1780607442000,-564.13,0.00014797,2]
[424131500,1780607442000,-384.033501,0.00014649,2]
[424131507,1780607442000,-640.3588634,0.00014797,2]
[424131502,1780607442000,-558.0,0.00014649,2]
[424131494,1780607442000,-710.66587433,0.00014649,2]
[424131554,1780607442000,-500.0,0.00014798,2]
[424131621,1780607442000,-3358.11042477,0.00014799,2]
[424131565,1780607442000,-500.0,0.00014798,2]
[424131563,1780607442000,-500.0,0.00014798,2]
[424131619,1780607442000,-500.0,0.00014799,2]
[424131615,1780607442000,-500.0,0.00014799,2]
[424131617,1780607442000,-1853.64,0.00014799,2]
[424131613,1780607442000,-500.0,0.00014799,2]
[424131612,1780607442000,-500.0,0.00014799,2]
[424131610,1780607442000,-500.0,0.00014799,2]
[424131604,1780607442000,-500.0,0.00014798,2]
[424131606,1780607442000,-500.0,0.00014798,2]
[424131602,1780607442000,-500.0,0.00014798,2]
[424131600,1780607442000,-500.0,0.00014798,2]
[424131598,1780607442000,-500.0,0.00014798,2]
[424131593,1780607442000,-134.8951517,0.00014798,2]
[424131595,1780607442000,-500.0,0.00014798,2]
[424131589,1780607442000,-500.0,0.00014798,2]
[424131608,1780607442000,-500.0,0.00014799,2]
[424131591,1780607442000,-365.1048483,0.00014798,2]
[424131559,1780607442000,-500.0,0.00014798,2]
[424131596,1780607442000,-1024.18,0.00014798,2]
[424131555,1780607442000,-500.0,0.00014798,2]
[424131567,1780607442000,-500.0,0.00014798,2]
[424131568,1780607442000,-762.29,0.00014798,2]
[424131572,1780607442000,-893.66,0.00014798,2]
[424131574,1780607442000,-500.0,0.00014798,2]
[424131570,1780607442000,-500.0,0.00014798,2]
[424131576,1780607442000,-500.0,0.00014798,2]
[424131580,1780607442000,-500.0,0.00014798,2]
[424131582,1780607442000,-266.02562041,0.00014798,2]
[424131585,1780607442000,-500.0,0.00014798,2]
[424131583,1780607442000,-500.0,0.00014798,2]
[424131587,1780607442000,-500.0,0.00014798,2]
[424131578,1780607442000,-504.37,0.00014798,2]
[424131839,1780607444000,-500.0,0.00014798,2]
[424131846,1780607444000,-500.0,0.00014798,2]
[424131854,1780607444000,-500.0,0.00014799,2]
[424131856,1780607444000,-1016.24,0.00014799,2]
[424131858,1780607444000,-500.0,0.00014799,2]
[424131860,1780607444000,-500.0,0.000148,2]
[424131874,1780607444000,-500.0,0.00014801,2]
[424131861,1780607444000,-500.0,0.000148,2]
[424131848,1780607444000,-1409.34647797,0.00014799,2]
[424131869,1780607444000,-500.0,0.00014801,2]
[424131865,1780607444000,-500.0,0.00014801,2]
[424131850,1780607444000,-353.4959654,0.00014799,2]
[424131852,1780607444000,-500.0,0.00014799,2]
[424131863,1780607444000,-500.0,0.00014801,2]
[424131867,1780607444000,-500.0,0.00014801,2]
[424131878,1780607444000,-500.0,0.00014801,2]
[424131873,1780607444000,-502.49472564,0.00014801,2]
[424131837,1780607444000,-500.0,0.00014798,2]
[424131842,1780607444000,-4043.63713186,0.00014799,2]
[424131840,1780607444000,-500.0,0.00014798,2]
[424131809,1780607444000,-500.0,0.00014798,2]
[424131833,1780607444000,-453.69700222,0.00014798,2]
[424131801,1780607444000,-353.41606655,0.00014798,2]
[424131803,1780607444000,-267.09515727,0.00014798,2]
[424131807,1780607444000,-500.0,0.00014798,2]
[424131805,1780607444000,-232.90484273,0.00014798,2]
[424131812,1780607444000,-98.02566213,0.00014798,2]
[424131811,1780607444000,-500.0,0.00014798,2]
[424131815,1780607444000,-401.97433787,0.00014798,2]
[424131823,1780607444000,-484.52599917,0.00014798,2]
[424131821,1780607444000,-500.0,0.00014798,2]
[424131819,1780607444000,-500.0,0.00014798,2]
[424131824,1780607444000,-586.64592825,0.00014798,2]
[424131817,1780607444000,-500.0,0.00014798,2]
[424131826,1780607444000,-500.0,0.00014798,2]
[424131828,1780607444000,-500.0,0.00014798,2]
[424131835,1780607444000,-46.30299778,0.00014798,2]
[424131829,1780607444000,-500.0,0.00014798,2]
[424131831,1780607444000,-500.0,0.00014798,2]
[424131830,1780607444000,-500.0,0.00014798,2]
[424131832,1780607444000,-500.0,0.00014798,2]
[424131827,1780607444000,-500.0,0.00014798,2]
[424131871,1780607444000,-500.0,0.00014801,2]
[424131907,1780607444000,-500.0,0.00014801,2]
[424131882,1780607444000,-500.0,0.00014801,2]
[424131929,1780607444000,-853.4,0.00015071,2]
[424131942,1780607444000,-500.0,0.00015071,2]
[424131925,1780607444000,-181.38505453,0.00014972,2]
[424131921,1780607444000,-500.0,0.00014804,2]
[424131944,1780607444000,-500.0,0.00015071,2]
[424131950,1780607444000,-500.0,0.00015072,2]
[424131948,1780607444000,-644.18,0.00015072,2]
[424131952,1780607444000,-500.0,0.00015072,2]
[424131946,1780607444000,-500.0,0.00015072,2]
[424131954,1780607444000,-384.82,0.00015072,2]
[424131956,1780607444000,-500.0,0.00015072,2]
[424131965,1780607444000,-500.0,0.00015072,2]
[424131967,1780607444000,-500.0,0.00015072,2]
[424131958,1780607444000,-500.0,0.00015072,2]
[424131960,1780607444000,-500.0,0.00015072,2]
[424131962,1780607444000,-500.0,0.00015072,2]
[424131969,1780607444000,-37.25112565,0.00015072,2]
[424131971,1780607444000,-462.74887435,0.00015072,2]
[424131876,1780607444000,-500.0,0.00014801,2]
[424131939,1780607444000,-993.49,0.00015071,2]
[424131923,1780607444000,-500.0,0.00014804,2]
[424131937,1780607444000,-500.0,0.00015071,2]
[424131927,1780607444000,-171.271733,0.00015068,2]
[424131884,1780607444000,-500.0,0.00014801,2]
[424131886,1780607444000,-14.19354216,0.00014801,2]
[424131888,1780607444000,-485.80645784,0.00014801,2]
[424131891,1780607444000,-500.0,0.00014801,2]
[424131935,1780607444000,-564.13,0.00015071,2]
[424131897,1780607444000,-500.0,0.00014801,2]
[424131895,1780607444000,-500.0,0.00014801,2]
[424131899,1780607444000,-500.0,0.00014801,2]
[424131901,1780607444000,-500.0,0.00014801,2]
[424131903,1780607444000,-227.45396091,0.00014801,2]
[424131893,1780607444000,-500.0,0.00014801,2]
[424131909,1780607444000,-500.0,0.00014801,2]
[424131905,1780607444000,-272.54603909,0.00014801,2]
[424131913,1780607444000,-500.0,0.00014801,2]
[424131915,1780607444000,-500.0,0.00014801,2]
[424131917,1780607444000,-500.0,0.00014801,2]
[424131933,1780607444000,-708.06,0.00015071,2]
[424131920,1780607444000,-500.0,0.00014803,2]
[424131931,1780607444000,-500.0,0.00015071,2]
[424131911,1780607444000,-500.0,0.00014801,2]
[424131977,1780607445000,-209.8944253,0.00015072,2]
[424131985,1780607445000,-362.62837474,0.00015072,2]
[424131979,1780607445000,-452.74230083,0.00015072,2]
[424131983,1780607445000,-500.0,0.00015072,2]
[424131975,1780607445000,-500.0,0.00015072,2]
[424131981,1780607445000,-309.54769917,0.00015072,2]
[424131988,1780607445000,-500.0,0.00014798,2]
[424131990,1780607445000,-195.7,0.00015072,2]
[424131973,1780607445000,-500.0,0.00015072,2]
[424132184,1780607446000,-500.0,0.00014798,2]
[424132182,1780607446000,-500.0,0.00014798,2]
[424132188,1780607446000,-32.66866536,0.00014798,2]
[424132186,1780607446000,-500.0,0.00014798,2]
[424132192,1780607446000,-332.32020554,0.00014798,2]
[424132201,1780607446000,-167.67979446,0.00014798,2]
[424132205,1780607446000,-2.54020554,0.00014798,2]
[424132203,1780607446000,-500.0,0.00014798,2]
[424132190,1780607446000,-467.33133464,0.00014798,2]
[424132301,1780607447000,-500.0,0.00015075,2]
[424132299,1780607447000,-500.0,0.00015075,2]
[424132296,1780607447000,-634.75,0.00015075,2]
[424132290,1780607447000,-500.0,0.00015074,2]
[424132288,1780607447000,-500.0,0.00015074,2]
[424132292,1780607447000,-500.0,0.00015075,2]
[424132297,1780607447000,-605.87,0.00015075,2]
[424132285,1780607447000,-500.0,0.00015073,2]
[424132280,1780607447000,-1016.24,0.00015073,2]
[424132277,1780607447000,-500.0,0.00015073,2]
[424132294,1780607447000,-500.0,0.00015075,2]
[424132303,1780607447000,-500.0,0.00015075,2]
[424132320,1780607447000,-500.0,0.00015077,2]
[424132319,1780607447000,-500.0,0.00015075,2]
[424132307,1780607447000,-500.0,0.00015075,2]
[424132322,1780607447000,-347.44845994,0.00015078,2]
[424132324,1780607447000,-600.0,0.00015094,2]
[424132309,1780607447000,-500.0,0.00015075,2]
[424132311,1780607447000,-500.0,0.00015075,2]
[424132328,1780607447000,-500.0,0.00015345,2]
[424132332,1780607447000,-564.13,0.00015345,2]
[424132317,1780607447000,-500.0,0.00015075,2]
[424132326,1780607447000,-853.4,0.00015345,2]
[424132315,1780607447000,-500.0,0.00015075,2]
[424132313,1780607447000,-550.20752017,0.00015075,2]
[424132305,1780607447000,-500.0,0.00015075,2]
[424132278,1780607447000,-500.0,0.00015073,2]
[424132273,1780607447000,-500.0,0.00015073,2]
[424132275,1780607447000,-9164.59,0.00015073,2]
[424132334,1780607447000,-500.0,0.00015345,2]
[424132226,1780607447000,-500.0,0.00014798,2]
[424132224,1780607447000,-497.45979446,0.00014798,2]
[424132228,1780607447000,-500.0,0.00014798,2]
[424132230,1780607447000,-500.0,0.00014798,2]
[424132232,1780607447000,-500.0,0.00014798,2]
[424132242,1780607447000,-500.0,0.00015072,2]
[424132234,1780607447000,-500.0,0.00014798,2]
[424132249,1780607447000,-261.40364311,0.00015072,2]
[424132244,1780607447000,-504.37,0.00015072,2]
[424132245,1780607447000,-500.0,0.00015072,2]
[424132247,1780607447000,-428.49053664,0.00015072,2]
[424132238,1780607447000,-335.33162526,0.00015072,2]
[424132236,1780607447000,-500.0,0.00014798,2]
[424132251,1780607447000,-624.2,0.00015072,2]
[424132240,1780607447000,-500.0,0.00015072,2]
[424132255,1780607447000,-500.0,0.00015072,2]
[424132256,1780607447000,-1024.18,0.00015072,2]
[424132253,1780607447000,-500.0,0.00015072,2]
[424132258,1780607447000,-500.0,0.00015072,2]
[424132260,1780607447000,-500.0,0.00015072,2]
[424132262,1780607447000,-335.45,0.00015072,2]
[424132264,1780607447000,-500.0,0.00015073,2]
[424132266,1780607447000,-500.0,0.00015073,2]
[424132268,1780607447000,-628.02,0.00015073,2]
[424132270,1780607447000,-1853.64,0.00015073,2]
[424132337,1780607447000,-500.0,0.00015345,2]
[424132330,1780607447000,-708.06,0.00015345,2]
[424132341,1780607447000,-500.0,0.00015346,2]
[424132403,1780607447000,-500.0,0.00015349,2]
[424132387,1780607447000,-500.0,0.00015347,2]
[424132397,1780607447000,-500.0,0.00015348,2]
[424132410,1780607447000,-603.80782721,0.00015349,2]
[424132405,1780607447000,-500.0,0.00015349,2]
[424132412,1780607447000,-500.0,0.00015349,2]
[424132401,1780607447000,-500.0,0.00015349,2]
[424132416,1780607447000,-500.0,0.00015349,2]
[424132418,1780607447000,-500.0,0.00015349,2]
[424132414,1780607447000,-500.0,0.00015349,2]
[424132419,1780607447000,-500.0,0.00015349,2]
[424132421,1780607447000,-500.0,0.00015351,2]
[424132399,1780607447000,-500.0,0.00015349,2]
[424132425,1780607447000,-151.5,0.00015584,2]
[424132431,1780607447000,-151.5,0.00015584,2]
[424132429,1780607447000,-151.5,0.00015584,2]
[424132433,1780607447000,-158.16556025,0.00015584,2]
[424132435,1780607447000,-853.4,0.00015619,2]
[424132436,1780607447000,-500.0,0.00015619,2]
[424132438,1780607447000,-708.06,0.00015619,2]
[424132442,1780607447000,-500.0,0.00015619,2]
[424132440,1780607447000,-564.13,0.00015619,2]
[424132448,1780607447000,-500.0,0.00015619,2]
[424132450,1780607447000,-500.0,0.00015619,2]
[424132336,1780607447000,-993.49,0.00015345,2]
[424132444,1780607447000,-993.49,0.00015619,2]
[424132427,1780607447000,-151.5,0.00015584,2]
[424132407,1780607447000,-500.0,0.00015349,2]
[424132423,1780607447000,-151.5,0.00015584,2]
[424132395,1780607447000,-500.0,0.00015348,2]
[424132393,1780607447000,-500.0,0.00015347,2]
[424132343,1780607447000,-302.52471279,0.00015346,2]
[424132339,1780607447000,-500.0,0.00015345,2]
[424132355,1780607447000,-762.29,0.00015346,2]
[424132347,1780607447000,-500.0,0.00015346,2]
[424132345,1780607447000,-500.0,0.00015346,2]
[424132353,1780607447000,-500.0,0.00015346,2]
[424132357,1780607447000,-500.0,0.00015346,2]
[424132358,1780607447000,-893.66,0.00015346,2]
[424132370,1780607447000,-500.0,0.00015346,2]
[424132372,1780607447000,-1024.18,0.00015346,2]
[424132379,1780607447000,-500.0,0.00015347,2]
[424132349,1780607447000,-500.0,0.00015346,2]
[424132351,1780607447000,-500.0,0.00015346,2]
[424132374,1780607447000,-500.0,0.00015346,2]
[424132391,1780607447000,-1016.24,0.00015347,2]
[424132378,1780607447000,-500.0,0.00015347,2]
[424132389,1780607447000,-500.0,0.00015347,2]
[424132383,1780607447000,-500.0,0.00015347,2]
[424132381,1780607447000,-1853.64,0.00015347,2]
[424132366,1780607447000,-504.37,0.00015346,2]
[424132385,1780607447000,-9164.59,0.00015347,2]
[424132362,1780607447000,-450.95158076,0.00015346,2]
[424132368,1780607447000,-500.0,0.00015346,2]
[424132360,1780607447000,-500.0,0.00015346,2]
[424132364,1780607447000,-486.83037576,0.00015346,2]
[424132376,1780607447000,-500.0,0.00015346,2]
[424132540,1780607448000,-196.49047636,0.00015894,2]
[424132535,1780607448000,-500.0,0.00015893,2]
[424132538,1780607448000,-525.02,0.00015894,2]
[424132536,1780607448000,-500.0,0.00015893,2]
[424132533,1780607448000,-993.49,0.00015893,2]
[424132523,1780607448000,-853.4,0.00015893,2]
[424132529,1780607448000,-564.13,0.00015893,2]
[424132517,1780607448000,-341.69,0.00015625,2]
[424132531,1780607448000,-500.0,0.00015893,2]
[424132519,1780607448000,-181.3850545,0.00015794,2]
[424132514,1780607448000,-500.0,0.00015623,2]
[424132542,1780607448000,-500.0,0.00015894,2]
[424132521,1780607448000,-12377.59688959,0.00015827,2]
[424132544,1780607448000,-500.0,0.00015894,2]
[424132570,1780607448000,-500.0,0.00015895,2]
[424132551,1780607448000,-762.29,0.00015894,2]
[424132527,1780607448000,-708.06,0.00015893,2]
[424132574,1780607448000,-500.0,0.00015895,2]
[424132572,1780607448000,-1853.64,0.00015895,2]
[424132566,1780607448000,-500.0,0.00015894,2]
[424132568,1780607448000,-500.0,0.00015895,2]
[424132578,1780607448000,-500.0,0.00015895,2]
[424132546,1780607448000,-500.0,0.00015894,2]
[424132564,1780607448000,-500.0,0.00015894,2]
[424132560,1780607448000,-500.0,0.00015894,2]
[424132559,1780607448000,-504.37,0.00015894,2]
[424132557,1780607448000,-500.0,0.00015894,2]
[424132553,1780607448000,-500.0,0.00015894,2]
[424132555,1780607448000,-893.66,0.00015894,2]
[424132549,1780607448000,-500.0,0.00015894,2]
[424132562,1780607448000,-1024.18,0.00015894,2]
[424132525,1780607448000,-500.0,0.00015893,2]
[424132459,1780607448000,-500.0,0.0001562,2]
[424132513,1780607448000,-500.0,0.00015623,2]
[424132576,1780607448000,-9164.59,0.00015895,2]
[424132452,1780607448000,-500.0,0.0001562,2]
[424132455,1780607448000,-500.0,0.0001562,2]
[424132457,1780607448000,-500.0,0.0001562,2]
[424132454,1780607448000,-500.0,0.0001562,2]
[424132462,1780607448000,-500.0,0.0001562,2]
[424132463,1780607448000,-762.29,0.0001562,2]
[424132468,1780607448000,-893.66,0.0001562,2]
[424132470,1780607448000,-500.0,0.0001562,2]
[424132466,1780607448000,-500.0,0.0001562,2]
[424132482,1780607448000,-500.0,0.0001562,2]
[424132478,1780607448000,-1024.18,0.0001562,2]
[424132472,1780607448000,-504.37,0.0001562,2]
[424132474,1780607448000,-500.0,0.0001562,2]
[424132476,1780607448000,-238.9,0.0001562,2]
[424132484,1780607448000,-500.0,0.00015621,2]
[424132480,1780607448000,-500.0,0.0001562,2]
[424132508,1780607448000,-592.84253697,0.00015623,2]
[424132512,1780607448000,-500.0,0.00015623,2]
[424132510,1780607448000,-500.0,0.00015623,2]
[424132498,1780607448000,-1016.24,0.00015621,2]
[424132501,1780607448000,-500.0,0.00015621,2]
[424132506,1780607448000,-500.0,0.00015623,2]
[424132515,1780607448000,-500.0,0.00015623,2]
[424132504,1780607448000,-500.0,0.00015623,2]
[424132496,1780607448000,-500.0,0.00015621,2]
[424132492,1780607448000,-9164.59,0.00015621,2]
[424132494,1780607448000,-500.0,0.00015621,2]
[424132490,1780607448000,-500.0,0.00015621,2]
[424132486,1780607448000,-500.0,0.00015621,2]
[424132488,1780607448000,-1853.64,0.00015621,2]
[424132503,1780607448000,-500.0,0.00015622,2]
[424132580,1780607448000,-500.0,0.00015895,2]
[424132655,1780607448000,-500.0,0.00016171,2]
[424132582,1780607448000,-1016.24,0.00015895,2]
[424132653,1780607448000,-500.0,0.00016171,2]
[424132663,1780607448000,-168.11818505,0.00016199,2]
[424132669,1780607448000,-500.0,0.00016441,2]
[424132665,1780607448000,-151.97452375,0.00016199,2]
[424132667,1780607448000,-853.4,0.00016441,2]
[424132657,1780607448000,-500.0,0.00016171,2]
[424132671,1780607448000,-708.06,0.00016441,2]
[424132661,1780607448000,-185.20170718,0.00016199,2]
[424132673,1780607448000,-564.13,0.00016441,2]
[424132675,1780607448000,-500.0,0.00016441,2]
[424132677,1780607448000,-993.49,0.00016441,2]
[424132680,1780607448000,-500.0,0.00016441,2]
[424132678,1780607448000,-500.0,0.00016441,2]
[424132684,1780607448000,-500.0,0.00016442,2]
[424132651,1780607448000,-500.0,0.00016169,2]
[424132682,1780607448000,-500.0,0.00016442,2]
[424132688,1780607448000,-500.0,0.00016442,2]
[424132690,1780607448000,-762.29,0.00016442,2]
[424132694,1780607448000,-893.66,0.00016442,2]
[424132692,1780607448000,-500.0,0.00016442,2]
[424132705,1780607448000,-500.0,0.00016442,2]
[424132696,1780607448000,-500.0,0.00016442,2]
[424132703,1780607448000,-1024.18,0.00016442,2]
[424132699,1780607448000,-504.37,0.00016442,2]
[424132701,1780607448000,-500.0,0.00016442,2]
[424132707,1780607448000,-500.0,0.00016443,2]
[424132711,1780607448000,-1853.64,0.00016443,2]
[424132709,1780607448000,-500.0,0.00016443,2]
[424132715,1780607448000,-9164.59,0.00016443,2]
[424132713,1780607448000,-500.0,0.00016443,2]
[424132686,1780607448000,-500.0,0.00016442,2]
[424132649,1780607448000,-1016.24,0.00016169,2]
[424132659,1780607448000,-581.68,0.00016171,2]
[424132634,1780607448000,-500.0,0.00016168,2]
[424132586,1780607448000,-500.0,0.00015897,2]
[424132584,1780607448000,-500.0,0.00015895,2]
[424132590,1780607448000,-474.24,0.00015897,2]
[424132592,1780607448000,-500.0,0.00015897,2]
[424132596,1780607448000,-853.4,0.00016167,2]
[424132594,1780607448000,-500.0,0.00015897,2]
[424132597,1780607448000,-500.0,0.00016167,2]
[424132629,1780607448000,-500.0,0.00016168,2]
[424132603,1780607448000,-500.0,0.00016167,2]
[424132599,1780607448000,-708.06,0.00016167,2]
[424132607,1780607448000,-500.0,0.00016167,2]
[424132605,1780607448000,-993.49,0.00016167,2]
[424132609,1780607448000,-500.0,0.00016167,2]
[424132613,1780607448000,-500.0,0.00016168,2]
[424132611,1780607448000,-500.0,0.00016168,2]
[424132601,1780607448000,-564.13,0.00016167,2]
[424132619,1780607448000,-762.29,0.00016168,2]
[424132615,1780607448000,-500.0,0.00016168,2]
[424132625,1780607448000,-500.0,0.00016168,2]
[424132643,1780607448000,-9164.59,0.00016169,2]
[424132639,1780607448000,-1853.64,0.00016169,2]
[424132647,1780607448000,-500.0,0.00016169,2]
[424132627,1780607448000,-504.37,0.00016168,2]
[424132631,1780607448000,-1024.18,0.00016168,2]
[424132588,1780607448000,-500.0,0.00015897,2]
[424132635,1780607448000,-500.0,0.00016169,2]
[424132641,1780607448000,-500.0,0.00016169,2]
[424132645,1780607448000,-500.0,0.00016169,2]
[424132637,1780607448000,-500.0,0.00016169,2]
[424132624,1780607448000,-893.66,0.00016168,2]
[424132621,1780607448000,-500.0,0.00016168,2]
[424132617,1780607448000,-500.0,0.00016168,2]
[424132739,1780607449000,-853.4,0.00016715,2]
[424132744,1780607449000,-564.13,0.00016715,2]
[424132742,1780607449000,-708.06,0.00016715,2]
[424132740,1780607449000,-500.0,0.00016715,2]
[424132736,1780607449000,-181.3850545,0.00016616,2]
[424132746,1780607449000,-500.0,0.00016715,2]
[424132731,1780607449000,-3703.11416091,0.00016561,2]
[424132727,1780607449000,-500.0,0.00016445,2]
[424132733,1780607449000,-720.0,0.00016603,2]
[424132749,1780607449000,-993.49,0.00016715,2]
[424132717,1780607449000,-500.0,0.00016443,2]
[424132725,1780607449000,-349.19,0.00016445,2]
[424132723,1780607449000,-500.0,0.00016443,2]
[424132719,1780607449000,-500.0,0.00016443,2]
[424132729,1780607449000,-500.0,0.00016445,2]
[424132721,1780607449000,-1016.24,0.00016443,2]
[424132755,1780607449000,-500.0,0.00016716,2]
[424132751,1780607449000,-500.0,0.00016715,2]
[424132783,1780607449000,-500.0,0.00016717,2]
[424132781,1780607449000,-12.01278224,0.00016717,2]
[424132785,1780607449000,-73.21664685,0.00016717,2]
[424132770,1780607449000,-504.37,0.00016716,2]
[424132768,1780607449000,-500.0,0.00016716,2]
[424132778,1780607449000,-487.98721776,0.00016717,2]
[424132776,1780607449000,-500.0,0.00016716,2]
[424132774,1780607449000,-1024.18,0.00016716,2]
[424132766,1780607449000,-893.66,0.00016716,2]
[424132773,1780607449000,-500.0,0.00016716,2]
[424132762,1780607449000,-762.29,0.00016716,2]
[424132760,1780607449000,-500.0,0.00016716,2]
[424132757,1780607449000,-500.0,0.00016716,2]
[424132758,1780607449000,-342.75,0.00016716,2]
[424132764,1780607449000,-500.0,0.00016716,2]
[424132753,1780607449000,-500.0,0.00016715,2]
[424138753,1780607955000,222.62,8.205e-05,2]
[424138752,1780607955000,222.61,8.205e-05,2]
[424138793,1780608474000,151.0,8.092e-05,2]
[424138803,1780608598000,3168.21957017,8.205e-05,2]
[424138804,1780608606000,5000.0,8.205e-05,2]
[424138806,1780608614000,5000.0,8.205e-05,2]
[424138842,1780608632000,-238.0476596,9.614e-05,2]
[424138844,1780608632000,-3646.86042348,0.0001,2]
[424138843,1780608632000,-745.0,9.999e-05,2]
[424138841,1780608632000,-370.09191692,9.517e-05,2]
[424138840,1780608632000,-4629.90808308,9.517e-05,2]
[424138889,1780608639000,-500.0,0.00013696,2]
[424138885,1780608639000,-500.0,0.00013696,2]
[424138884,1780608639000,-500.0,0.00013696,2]
[424138878,1780608639000,-500.0,0.00013696,2]
[424138879,1780608639000,-500.0,0.00013696,2]